[Event "IV Pullman Rapid 2022"]
[Site "Riga, Latvia"]
[Date "2022.02.19"]
[Round "8.3"]
[White "Jazdanovs, Aleksandrs"]
[Black "Mikelsons, Mikelis-Emils"]
[Result "1-0"]
[TimeControl "600+5"]
[WhiteElo "1993"]
[BlackElo "1891"]

1. e4 {[%clk 00:10:09]} e5 {[%clk 00:10:09]} {[%emt 00:00:01]} 2. Nf3 {[%clk
00:10:12]} {[%emt 00:00:01]} Nc6 {[%clk 00:10:13]} {[%emt 00:00:02]} 3. d4
{[%clk 00:10:16]} exd4 {[%clk 00:10:17]} {[%emt 00:00:02]} 4. Nxd4 {[%clk
00:10:19]} {[%emt 00:00:01]} Qf6 {[%clk 00:10:21]} {[%emt 00:00:01]} 5. Be3
{[%clk 00:09:44]} {[%emt 00:00:40]} Bc5 {[%clk 00:10:24]} {[%emt 00:00:02]} 6.
c3 {[%clk 00:09:47]} {[%emt 00:00:01]} Nge7 {[%clk 00:10:28]} {[%emt 00:00:02]}
7. g3 {[%clk 00:09:39]} {[%emt 00:00:13]} d5 {[%clk 00:10:18]} {[%emt
00:00:15]} 8. Bg2 {[%clk 00:09:16]} {[%emt 00:00:29]} dxe4 {[%clk 00:09:51]}
{[%emt 00:00:32]} 9. Nd2 {[%clk 00:09:20]} Bxd4 {[%clk 00:09:15]} {[%emt
00:00:42]} 10. cxd4 {[%clk 00:09:06]} {[%emt 00:00:19]} Bf5 {[%clk 00:09:11]}
{[%emt 00:00:09]} 11. Nxe4 {[%clk 00:08:56]} {[%emt 00:00:14]} Qg6 {[%clk
00:09:09]} {[%emt 00:00:08]} 12. Nc5 {[%clk 00:08:29]} {[%emt 00:00:32]} O-O
{[%clk 00:08:50]} {[%emt 00:00:23]} 13. O-O {[%clk 00:08:27]} {[%emt 00:00:07]}
b6 {[%clk 00:08:38]} {[%emt 00:00:17]} 14. Nb3 {[%clk 00:08:31]} Rad8 {[%clk
00:08:24]} {[%emt 00:00:19]} 15. Rc1 {[%clk 00:08:21]} {[%emt 00:00:16]} Nd5
{[%clk 00:08:04]} {[%emt 00:00:25]} 16. Qd2 {[%clk 00:07:19]} {[%emt 00:01:07]}
Ncb4 {[%clk 00:06:48]} {[%emt 00:01:21]} 17. a3 {[%clk 00:06:53]} {[%emt
00:00:31]} Nd3 {[%clk 00:06:40]} {[%emt 00:00:12]} 18. Rcd1 {[%clk 00:06:35]}
{[%emt 00:00:19]} Nxe3 {[%clk 00:05:19]} {[%emt 00:01:31]} 19. fxe3 {[%clk
00:06:38]} {[%emt 00:00:02]} c5 {[%clk 00:05:23]} {[%emt 00:00:01]} 20. Rxf5
{[%clk 00:05:07]} {[%emt 00:01:36]} Qxf5 {[%clk 00:05:27]} {[%emt 00:00:01]} 21.
e4 {[%clk 00:05:11]} Qc8 {[%clk 00:05:10]} {[%emt 00:00:22]} 22. Qxd3 {[%clk
00:04:55]} {[%emt 00:00:21]} c4 {[%clk 00:05:14]} {[%emt 00:00:01]} 23. Qe3
{[%clk 00:04:51]} {[%emt 00:00:09]} cxb3 {[%clk 00:05:16]} {[%emt 00:00:03]} 24.
Qxb3 {[%clk 00:04:55]} {[%emt 00:00:02]} Qe6 {[%clk 00:03:19]} {[%emt
00:02:03]} 25. d5 {[%clk 00:04:43]} {[%emt 00:00:16]} Qe5 {[%clk 00:03:22]}
{[%emt 00:00:02]} 26. Qb4 {[%clk 00:04:28]} {[%emt 00:00:21]} f5 {[%clk
00:03:14]} {[%emt 00:00:13]} 27. exf5 {[%clk 00:04:22]} {[%emt 00:00:10]} Qe3+
{[%clk 00:02:20]} {[%emt 00:00:58]} 28. Kh1 {[%clk 00:04:27]} {[%emt 00:00:01]}
Rxf5 {[%clk 00:02:23]} {[%emt 00:00:01]} 29. d6 {[%clk 00:04:18]} {[%emt
00:00:14]} Qe2 {[%clk 00:01:42]} {[%emt 00:00:46]} 30. Re1 {[%clk 00:03:44]}
{[%emt 00:00:38]} Qd3 {[%clk 00:01:45]} {[%emt 00:00:02]} 31. Be4 {[%clk
00:03:46]} {[%emt 00:00:04]} Rf1+ {[%clk 00:01:39]} {[%emt 00:00:11]} 32. Kg2
{[%clk 00:03:40]} {[%emt 00:00:11]} 1-0

[Event "IV Pullman Rapid 2022"]
[Site "Riga, Latvia"]
[Date "2022.02.19"]
[Round "8.4"]
[White "Levchenkov, Vitaly"]
[Black "Kretainis, Kristaps"]
[Result "0-1"]
[TimeControl "600+5"]
[WhiteTitle "FM"]
[WhiteElo "1958"]
[BlackElo "2157"]

1. e4 {[%emt 00:12:53]} d6 {[%emt 00:00:01]} 2. d4 {[%emt 00:00:02]} Nf6 3. Nc3
{[%emt 00:00:02]} e5 4. dxe5 {[%emt 00:00:02]} dxe5 5. Qxd8+ {[%emt 00:00:04]}
Kxd8 6. Bc4 {[%emt 00:00:13]} Be6 {[%emt 00:00:01]} 7. Bxe6 {[%emt 00:00:06]}
fxe6 {[%emt 00:00:01]} 8. Nf3 {[%clk 00:09:41]} {[%emt 00:00:32]} Bd6 {[%clk
00:10:40]} {[%emt 00:00:01]} 9. Bg5 {[%clk 00:09:43]} {[%emt 00:00:02]} a6
{[%clk 00:10:40]} {[%emt 00:00:06]} 10. O-O-O {[%clk 00:09:45]} {[%emt
00:00:03]} Ke7 {[%clk 00:10:44]} {[%emt 00:00:01]} 11. Bh4 {[%clk 00:09:25]}
{[%emt 00:00:24]} h6 {[%clk 00:10:36]} {[%emt 00:00:13]} 12. Bg3 {[%clk
00:09:27]} {[%emt 00:00:02]} Nc6 {[%clk 00:10:40]} {[%emt 00:00:01]} 13. a3
{[%clk 00:09:22]} {[%emt 00:00:10]} g5 {[%clk 00:10:42]} {[%emt 00:00:02]} 14.
h3 {[%clk 00:09:13]} {[%emt 00:00:13]} b5 {[%clk 00:10:29]} {[%emt 00:00:19]}
15. Rhe1 {[%clk 00:09:08]} {[%emt 00:00:10]} Rhb8 {[%clk 00:10:30]} {[%emt
00:00:04]} 16. Re2 {[%emt 00:00:44]} a5 {[%emt 00:00:03]} 17. a4 {[%emt
00:00:31]} bxa4 {[%emt 00:00:10]} 18. Nxa4 {[%emt 00:00:01]} Rb4 {[%emt
00:00:09]} 19. Nc3 {[%emt 00:00:08]} a4 {[%emt 00:00:02]} 20. Rde1 {[%emt
00:00:34]} Rab8 {[%emt 00:00:45]} 21. Nd1 {[%emt 00:00:31]} Nh5 {[%emt
00:00:32]} 22. Bh2 {[%clk 00:07:00]} {[%emt 00:00:09]} Nf4 {[%clk 00:08:22]}
{[%emt 00:01:05]} 23. Bxf4 {[%clk 00:07:03]} exf4 {[%clk 00:08:26]} {[%emt
00:00:04]} 24. e5 {[%clk 00:06:48]} {[%emt 00:00:20]} Bc5 {[%clk 00:07:51]}
{[%emt 00:00:15]} 25. Re4 {[%clk 00:06:44]} a3 {[%clk 00:06:23]} {[%emt
00:02:07]} 26. b3 {[%emt 00:00:18]} Ra8 {[%emt 00:00:31]} 27. Kb1 {[%clk
00:05:34]} {[%emt 00:01:01]} a2+ 28. Ka1 {[%emt 00:00:01]} Nd4 {[%emt
00:00:06]} 29. Nxd4 {[%emt 00:01:26]} Bxd4+ {[%clk 00:06:00]} {[%emt 00:00:06]}
30. Nb2 {[%clk 00:04:11]} {[%emt 00:00:08]} Bxb2+ {[%clk 03:06:04]} {[%emt
00:00:02]} 31. Kxb2 {[%clk 00:04:14]} {[%emt 00:00:02]} Rxe4 {[%clk 00:06:08]}
{[%emt 00:00:01]} 0-1

[Event "IV Pullman Rapid 2022"]
[Site "Riga, Latvia"]
[Date "2022.02.19"]
[Round "9.1"]
[White "Shirov, Alexei"]
[Black "Jazdanovs, Aleksandrs"]
[Result "1-0"]
[TimeControl "600+5"]
[WhiteTitle "GM"]
[WhiteElo "2614"]
[BlackElo "1993"]

1. e4 {[%clk 00:10:08]} {[%emt 00:00:02]} c5 {[%clk 00:10:08]} {[%emt
00:00:03]} 2. Nc3 {[%clk 00:10:11]} {[%emt 00:00:02]} d6 {[%clk 00:10:10]}
{[%emt 00:00:03]} 3. d4 {[%clk 00:10:15]} {[%emt 00:00:01]} cxd4 {[%clk
00:10:12]} {[%emt 00:00:02]} 4. Qxd4 {[%clk 00:10:18]} {[%emt 00:00:02]} Nc6
{[%clk 00:10:16]} {[%emt 00:00:02]} 5. Qd2 {[%clk 00:10:22]} {[%emt 00:00:02]}
g6 {[%clk 00:10:18]} {[%emt 00:00:03]} 6. b3 {[%clk 00:10:25]} {[%emt
00:00:02]} Bh6 {[%clk 00:10:20]} {[%emt 00:00:02]} 7. f4 {[%clk 00:10:28]}
{[%emt 00:00:02]} Nf6 {[%clk 00:09:53]} {[%emt 00:00:32]} 8. Bb2 {[%clk
00:10:29]} {[%emt 00:00:05]} e5 {[%clk 00:08:55]} {[%emt 00:01:03]} 9. g3
{[%clk 00:09:06]} {[%emt 00:01:29]} O-O {[%clk 00:08:57]} {[%emt 00:00:03]} 10.
O-O-O {[%clk 00:08:35]} {[%emt 00:00:36]} Bg4 {[%clk 00:08:33]} {[%emt
00:00:29]} 11. Be2 {[%clk 00:08:08]} {[%emt 00:00:32]} Be6 {[%clk 00:05:45]}
{[%emt 00:02:52]} 12. Nf3 {[%clk 00:07:33]} {[%emt 00:00:40]} exf4 {[%clk
00:05:39]} {[%emt 00:00:11]} 13. Kb1 {[%clk 00:06:45]} {[%emt 00:00:53]} Qb6
{[%clk 00:05:29]} {[%emt 00:00:15]} 14. gxf4 {[%clk 00:06:31]} {[%emt
00:00:19]} Ne5 {[%clk 00:05:03]} {[%emt 00:00:32]} 15. Ng5 {[%clk 00:06:07]}
{[%emt 00:00:29]} Bxg5 {[%clk 00:03:42]} {[%emt 00:01:27]} 16. fxg5 {[%clk
00:06:09]} {[%emt 00:00:02]} Nfg4 {[%clk 00:03:46]} 17. Qxd6 {[%clk 00:05:23]}
{[%emt 00:00:52]} Qe3 {[%clk 00:02:13]} {[%emt 00:01:37]} 18. h3 {[%clk
00:05:00]} {[%emt 00:00:29]} 1-0

[Event "IV Pullman Rapid 2022"]
[Site "Riga, Latvia"]
[Date "2022.02.19"]
[Round "9.2"]
[White "Kretainis, Kristaps"]
[Black "Golubovskis, Maksims"]
[Result "1/2-1/2"]
[TimeControl "600+5"]
[BlackTitle "FM"]
[WhiteElo "2157"]
[BlackElo "2185"]

1. e4 {[%clk 00:10:09]} {[%emt 00:05:23]} c5 {[%clk 00:10:04]} {[%emt
00:00:07]} 2. c3 {[%clk 00:10:13]} Nf6 {[%clk 00:10:04]} {[%emt 00:00:05]} 3.
e5 {[%clk 00:10:17]} {[%emt 00:00:01]} Nd5 {[%clk 00:10:09]} 4. g3 {[%clk
00:10:22]} d6 {[%clk 00:10:06]} {[%emt 00:00:08]} 5. exd6 {[%clk 00:10:24]}
{[%emt 00:00:02]} Qxd6 {[%clk 00:09:50]} {[%emt 00:00:21]} 6. Bg2 {[%clk
00:10:28]} {[%emt 00:00:01]} Nc6 {[%clk 00:09:44]} {[%emt 00:00:11]} 7. Ne2
{[%clk 00:10:31]} {[%emt 00:00:02]} g6 {[%clk 00:09:38]} {[%emt 00:00:11]} 8.
d4 {[%clk 00:10:34]} {[%emt 00:00:02]} cxd4 {[%clk 00:09:38]} {[%emt 00:00:05]}
9. Nxd4 {[%clk 00:10:38]} {[%emt 00:00:01]} Qe5+ {[%clk 00:08:04]} {[%emt
00:01:39]} 10. Qe2 {[%clk 00:10:35]} {[%emt 00:00:07]} Qxe2+ {[%clk 00:08:04]}
{[%emt 00:00:05]} 11. Nxe2 {[%clk 00:10:17]} {[%emt 00:00:23]} Be6 {[%clk
00:07:26]} {[%emt 00:00:43]} 12. Nf4 {[%clk 00:09:35]} {[%emt 00:00:47]} Nxf4
{[%clk 00:07:26]} {[%emt 00:00:06]} 13. Bxf4 {[%clk 00:09:38]} {[%emt
00:00:02]} Bg7 {[%clk 00:07:19]} {[%emt 00:00:12]} 14. O-O {[%clk 00:09:32]}
{[%emt 00:00:11]} O-O {[%clk 00:07:22]} {[%emt 00:00:02]} 15. Nd2 {[%clk
00:09:29]} {[%emt 00:00:08]} Rac8 {[%clk 00:05:39]} {[%emt 00:01:49]} 16. Nb3
{[%clk 00:09:03]} {[%emt 00:00:30]} b6 {[%clk 00:05:32]} {[%emt 00:00:12]} 17.
Rad1 {[%clk 00:08:28]} {[%emt 00:00:39]} Ne5 {[%clk 00:04:34]} {[%emt
00:01:04]} 18. Nd4 {[%clk 00:07:51]} {[%emt 00:00:42]} Bxa2 {[%clk 00:04:00]}
{[%emt 00:00:39]} 19. Rfe1 {[%clk 00:07:55]} {[%emt 00:00:01]} Nc4 {[%clk
00:03:26]} {[%emt 00:00:39]} 20. Ra1 {[%clk 00:07:53]} {[%emt 00:00:07]} e5
{[%clk 00:03:26]} {[%emt 00:00:05]} 21. Nc6 {[%clk 00:07:34]} {[%emt 00:00:24]}
Rxc6 {[%clk 00:01:58]} {[%emt 00:01:33]} 22. Bxc6 {[%clk 00:07:29]} {[%emt
00:00:10]} exf4 {[%clk 00:02:02]} {[%emt 00:00:01]} 23. Rxa2 {[%clk 00:07:22]}
{[%emt 00:00:12]} fxg3 {[%clk 00:02:06]} 24. hxg3 {[%clk 00:07:23]} {[%emt
00:00:05]} Nxb2 {[%clk 00:01:54]} {[%emt 00:00:17]} 25. Rxa7 {[%clk 00:06:36]}
{[%emt 00:00:51]} Bxc3 {[%clk 00:01:26]} {[%emt 00:00:33]} 26. Re3 {[%clk
00:06:36]} {[%emt 00:00:04]} Bd4 {[%clk 00:01:20]} {[%emt 00:00:13]} 27. Rf3
{[%clk 00:06:39]} Nc4 {[%clk 00:00:50]} {[%emt 00:00:35]} 28. Bd5 {[%clk
00:06:22]} {[%emt 00:00:20]} Ne5 {[%clk 00:00:37]} {[%emt 00:00:20]} 29. Rf4
{[%clk 00:06:13]} {[%emt 00:00:14]} Bc5 {[%clk 00:00:36]} {[%emt 00:00:07]} 30.
Kg2 {[%clk 00:05:57]} {[%emt 00:00:21]} Kg7 {[%clk 00:00:35]} {[%emt 00:00:06]}
31. Re4 {[%clk 00:05:26]} {[%emt 00:00:35]} Kf6 {[%clk 00:00:37]} {[%emt
00:00:04]} 32. f4 {[%clk 00:05:04]} {[%emt 00:00:27]} Ng4 {[%clk 00:00:30]}
{[%emt 00:00:12]} 33. Bb3 {[%clk 00:04:53]} {[%emt 00:00:16]} Ne3+ {[%clk
00:00:29]} {[%emt 00:00:06]} 34. Kf3 {[%clk 00:04:40]} {[%emt 00:00:18]} Nf5
{[%clk 00:00:33]} {[%emt 00:00:01]} 35. Ba2 {[%clk 00:04:38]} {[%emt 00:00:07]}
h5 {[%clk 00:00:34]} {[%emt 00:00:05]} 36. Rd7 {[%clk 00:04:04]} {[%emt
00:00:38]} Ng7 {[%clk 00:00:23]} {[%emt 00:00:16]} 37. Rc7 {[%clk 00:03:53]}
{[%emt 00:00:15]} Nf5 {[%clk 00:00:26]} {[%emt 00:00:03]} 38. Kg2 {[%clk
00:03:16]} {[%emt 00:00:42]} Ne3+ {[%clk 00:00:30]} {[%emt 00:00:01]} 39. Kf3
{[%clk 00:03:21]} {[%emt 00:00:01]} Nf5 {[%clk 00:00:34]} 40. Ra4 {[%emt
00:01:02]} Nd6 1/2-1/2

[Event "IV Pullman Rapid 2022"]
[Site "Riga, Latvia"]
[Date "2022.02.19"]
[Round "9.3"]
[White "Mustaps, Matiss"]
[Black "Savicevs, Arsenijs"]
[Result "1/2-1/2"]
[TimeControl "600+5"]
[WhiteTitle "FM"]
[WhiteElo "2393"]
[BlackElo "1955"]

1. e4 {[%clk 00:10:09]} {[%emt 00:09:22]} c5 {[%clk 00:10:09]} {[%emt
00:00:01]} 2. Nf3 {[%clk 00:10:13]} e6 {[%clk 00:10:13]} {[%emt 00:00:01]} 3.
d4 {[%clk 00:10:18]} cxd4 {[%clk 00:10:16]} {[%emt 00:00:01]} 4. Nxd4 {[%clk
00:10:22]} Nf6 {[%clk 00:10:20]} {[%emt 00:00:02]} 5. Nc3 {[%clk 00:10:26]}
{[%emt 00:00:01]} Nc6 {[%clk 00:10:22]} {[%emt 00:00:03]} 6. Nxc6 {[%clk
00:10:05]} {[%emt 00:00:26]} bxc6 {[%clk 00:10:25]} {[%emt 00:00:02]} 7. Bd3
{[%clk 00:10:09]} d5 {[%clk 00:10:26]} {[%emt 00:00:04]} 8. O-O {[%clk
00:10:12]} {[%emt 00:00:02]} Be7 {[%clk 00:10:15]} {[%emt 00:00:16]} 9. e5
{[%clk 00:10:11]} {[%emt 00:00:06]} Nd7 {[%clk 00:10:17]} {[%emt 00:00:03]} 10.
Re1 {[%clk 00:10:15]} O-O {[%clk 00:09:52]} {[%emt 00:00:31]} 11. b3 {[%clk
00:08:46]} {[%emt 00:01:34]} a5 {[%clk 00:09:27]} {[%emt 00:00:29]} 12. Na4
{[%clk 00:08:34]} {[%emt 00:00:18]} Ba6 {[%clk 00:09:29]} {[%emt 00:00:03]} 13.
c4 {[%clk 00:08:11]} {[%emt 00:00:28]} dxc4 {[%clk 00:06:53]} {[%emt 00:02:41]}
14. bxc4 {[%clk 00:08:15]} {[%emt 00:00:01]} Nc5 {[%clk 00:06:16]} {[%emt
00:00:42]} 15. Nxc5 {[%clk 00:08:16]} {[%emt 00:00:04]} Bxc5 {[%clk 00:06:19]}
{[%emt 00:00:01]} 16. Be3 {[%clk 00:08:07]} {[%emt 00:00:13]} Bb4 {[%clk
00:06:01]} {[%emt 00:00:24]} 17. Re2 {[%clk 00:06:37]} {[%emt 00:01:35]} Bc3
{[%clk 00:06:00]} {[%emt 00:00:05]} 18. Rc1 {[%clk 00:06:37]} {[%emt 00:00:06]}
Bxe5 {[%clk 00:06:01]} {[%emt 00:00:04]} 19. Qc2 {[%clk 00:05:33]} {[%emt
00:01:10]} g6 {[%clk 00:05:20]} {[%emt 00:00:45]} 20. Rd1 {[%clk 00:04:52]}
{[%emt 00:00:46]} Qc7 {[%emt 00:00:14]} 21. h4 {[%clk 00:04:48]} {[%emt
00:00:08]} Qe7 {[%clk 00:04:25]} {[%emt 00:00:52]} 22. h5 {[%clk 00:04:31]}
{[%emt 00:00:22]} Qh4 {[%clk 00:04:12]} {[%emt 00:00:18]} 23. g3 {[%clk
00:04:34]} {[%emt 00:00:02]} Qxh5 {[%clk 00:04:15]} {[%emt 00:00:02]} 24. Kg2
{[%clk 00:04:36]} {[%emt 00:00:03]} Bg7 {[%clk 00:02:59]} {[%emt 00:01:23]} 25.
Be4 {[%clk 00:04:07]} {[%emt 00:00:34]} Rac8 {[%clk 00:02:40]} {[%emt
00:00:23]} 26. Rd7 {[%clk 00:03:38]} {[%emt 00:00:35]} Rfd8 {[%clk 00:01:33]}
{[%emt 00:01:12]} 27. Ra7 {[%clk 00:01:58]} {[%emt 00:01:44]} Ra8 {[%clk
00:01:35]} {[%emt 00:00:03]} 28. Rxa8 {[%clk 00:02:01]} {[%emt 00:00:02]} Rxa8
{[%clk 00:01:38]} {[%emt 00:00:02]} 29. Bxc6 {[%clk 00:02:05]} {[%emt
00:00:01]} Rc8 {[%clk 00:01:37]} {[%emt 00:00:06]} 30. Bf3 {[%clk 00:02:08]}
{[%emt 00:00:01]} Qf5 {[%clk 00:01:12]} {[%emt 00:00:30]} 31. Be4 {[%clk
00:02:00]} {[%emt 00:00:14]} Qe5 {[%clk 00:01:00]} {[%emt 00:00:18]} 32. Bf4
{[%clk 00:00:47]} {[%emt 00:01:18]} Qd4 {[%clk 00:00:32]} {[%emt 00:00:32]} 33.
Rd2 {[%clk 00:00:12]} {[%emt 00:00:40]} Qxc4 {[%clk 00:00:34]} {[%emt
00:00:03]} 34. Qxc4 {[%clk 00:00:13]} {[%emt 00:00:04]} Bxc4 {[%clk 00:00:38]}
35. a4 {[%clk 00:00:07]} {[%emt 00:00:12]} f5 {[%clk 00:00:38]} {[%emt
00:00:05]} 36. Bb7 {[%clk 00:00:07]} {[%emt 00:00:05]} Rf8 {[%clk 00:00:23]}
{[%emt 00:00:19]} 37. Rd7 {[%clk 00:00:09]} {[%emt 00:00:02]} e5 {[%clk
00:00:24]} {[%emt 00:00:06]} 38. Bd2 {[%clk 00:00:12]} {[%emt 00:00:02]} Be6
{[%clk 00:00:20]} {[%emt 00:00:09]} 39. Re7 {[%clk 00:00:08]} {[%emt 00:00:08]}
Bb3 {[%clk 00:00:24]} {[%emt 00:00:02]} 40. Bc6 {[%clk 00:00:08]} {[%emt
00:00:05]} Rc8 {[%clk 00:00:28]} {[%emt 00:00:02]} 41. Bb5 {[%clk 00:00:09]}
{[%emt 00:00:04]} Bd5+ {[%clk 00:00:25]} {[%emt 00:00:07]} 42. Kh2 {[%clk
00:00:07]} {[%emt 00:00:07]} Ra8 {[%clk 00:00:22]} {[%emt 00:00:09]} 43. Rd7
{[%clk 00:00:08]} {[%emt 00:00:04]} Bf3 {[%clk 00:00:23]} {[%emt 00:00:03]} 44.
Bc4+ {[%clk 00:00:10]} {[%emt 00:00:03]} Kh8 {[%clk 00:00:27]} 45. Bb5 {[%clk
00:00:07]} {[%emt 00:00:08]} Bf6 {[%clk 00:00:24]} {[%emt 00:00:08]} 46. Rf7
{[%clk 00:00:07]} {[%emt 00:00:05]} Bg7 {[%clk 00:00:22]} {[%emt 00:00:07]} 47.
Rd7 {[%clk 00:00:11]} {[%emt 00:00:01]} Bf6 {[%clk 00:00:10]} {[%emt 00:00:17]}
48. Kg1 {[%clk 00:00:14]} {[%emt 00:00:02]} Rd8 {[%clk 00:00:14]} {[%emt
00:00:01]} 49. Bxa5 {[%clk 00:00:12]} {[%emt 00:00:07]} Rxd7 {[%clk 00:00:18]}
50. Bxd7 {[%clk 00:00:16]} Kg7 {[%clk 00:00:12]} {[%emt 00:00:11]} 51. Bb6
{[%clk 00:00:21]} Kf7 {[%clk 00:00:15]} {[%emt 00:00:02]} 52. a5 {[%clk
00:00:25]} Ke7 {[%clk 00:00:19]} 53. Bc8 {[%clk 00:00:27]} {[%emt 00:00:03]}
Ba8 {[%clk 00:00:15]} {[%emt 00:00:09]} 54. a6 {[%clk 00:00:27]} {[%emt
00:00:05]} e4 {[%clk 00:00:19]} 55. Bb7 {[%clk 00:00:22]} {[%emt 00:00:11]}
Bxb7 {[%clk 00:00:23]} {[%emt 00:00:02]} 56. axb7 {[%clk 00:00:25]} {[%emt
00:00:02]} Be5 {[%clk 00:00:27]} 57. Ba7 {[%clk 00:00:29]} e3 {[%clk 00:00:23]}
{[%emt 00:00:09]} 58. Bxe3 {[%clk 00:00:16]} {[%emt 00:00:18]} Bb8 {[%clk
00:00:06]} {[%emt 00:00:22]} 59. Bf4 {[%clk 00:00:20]} {[%emt 00:00:01]} Ba7
{[%clk 00:00:10]} {[%emt 00:00:01]} 60. b8=Q {[%clk 00:00:23]} {[%emt
00:00:01]} Bxb8 {[%clk 00:00:14]} {[%emt 00:00:01]} 61. Bxb8 {[%clk 00:00:27]}
g5 {[%clk 00:00:17]} {[%emt 00:00:02]} 62. Kg2 {[%clk 00:00:08]} {[%emt
00:00:24]} g4 {[%clk 00:00:14]} {[%emt 00:00:08]} 63. Bf4 {[%clk 00:00:07]}
{[%emt 00:00:05]} Ke6 {[%clk 00:00:16]} {[%emt 00:00:03]} 64. Kf1 {[%clk
00:00:12]} Kd5 {[%clk 00:00:20]} {[%emt 00:00:02]} 65. Ke2 {[%clk 00:00:16]}
Ke4 {[%clk 00:00:24]} 66. Bh6 {[%clk 00:00:16]} {[%emt 00:00:05]} Kd4 {[%clk
00:00:27]} {[%emt 00:00:01]} 67. Bf4 {[%clk 00:00:19]} {[%emt 00:00:02]} Ke4
{[%clk 00:00:32]} {[%emt 00:00:01]} 68. Be3 {[%clk 00:00:23]} h5 {[%clk
00:00:34]} {[%emt 00:00:03]} 69. Bg5 {[%clk 00:00:24]} {[%emt 00:00:04]} Kd4
{[%clk 00:00:23]} {[%emt 00:00:16]} 70. Bf4 {[%clk 00:00:18]} {[%emt 00:00:11]}
Ke4 {[%clk 00:00:27]} 71. Be3 {[%clk 00:00:22]} {[%emt 00:00:01]} f4 {[%clk
00:00:06]} {[%emt 00:00:27]} 72. Bxf4 {[%clk 00:00:22]} {[%emt 00:00:05]} h4
{[%clk 00:00:10]} 73. gxh4 {[%clk 00:00:12]} {[%emt 00:00:15]} Kxf4 {[%clk
00:00:14]} {[%emt 00:00:01]} 74. Kf1 {[%clk 00:00:16]} Kf5 {[%clk 00:00:12]}
{[%emt 00:00:08]} 75. Kg1 {[%clk 00:00:07]} {[%emt 00:00:14]} Kg6 {[%clk
00:00:15]} {[%emt 00:00:02]} 76. Kh2 {[%clk 00:00:11]} {[%emt 00:00:01]} Kh6
{[%clk 00:00:18]} {[%emt 00:00:02]} 77. Kg2 {[%clk 00:00:09]} {[%emt 00:00:07]}
Kg6 {[%clk 00:00:22]} 78. Kg3 {[%clk 00:00:06]} {[%emt 00:00:09]} Kh5 {[%clk
00:00:26]} {[%emt 00:00:01]} 79. f3 {[%clk 00:00:06]} {[%emt 00:00:05]} gxf3
{[%clk 00:00:29]} {[%emt 00:00:02]} 80. Kxf3 {[%clk 00:00:10]} Kxh4 {[%clk
00:00:33]} 81. Ke4 {[%emt 00:00:05]} 1/2-1/2